fUSD/lending_fUSD_20251210
["ID","MTS","AMOUNT","RATE_DAILY","PERIOD"]
[398126873,1765387856628,-462.141932,0.00041601,120]
[398126874,1765387856639,-462.141932,0.00041601,120]
[398126875,1765387856651,-462.141932,0.00041601,120]
[398126876,1765387856664,-462.141932,0.00041601,120]
[398126877,1765387856676,-14.87464264,0.00041601,120]
[398126878,1765387856866,-447.26728936,0.00041601,120]
[398126879,1765387856878,-462.141932,0.00041601,120]
[398126880,1765387856890,-19.19212603,0.00041601,120]
[398126881,1765387856926,-500.0,0.000415,14]
[398126882,1765387856935,-500.0,0.000416,14]
[398126883,1765387856944,-442.94980597,0.00041601,120]
[398126884,1765387856954,-462.141932,0.00041601,120]
[398126885,1765387856963,-462.141932,0.00041601,120]
[398126886,1765387856973,-462.141932,0.00041601,120]
[398126887,1765387856982,-289.9571591,0.00041601,120]
[398126888,1765387857591,-163.8076228,0.00017019,2]
[398126889,1765387857601,-114.69237715,0.00041095,60]
[398126890,1765387857620,-385.30762285,0.00041095,60]
[398126891,1765387857631,-500.0,0.00041095,60]
[398126892,1765387857640,-500.0,0.00041095,60]
[398126893,1765387857649,-500.0,0.00041095,60]
[398126894,1765387857659,-500.0,0.00041095,60]
[398126895,1765387857667,-500.0,0.00041095,60]
[398126896,1765387857677,-500.0,0.00041095,60]
[398126897,1765387857686,-500.0,0.00041095,60]
[398126898,1765387857696,-500.0,0.00041095,60]
[398126899,1765387857705,-500.0,0.00041095,60]
[398126900,1765387857714,-47.99974297,0.00041095,60]
[398126901,1765387857735,-452.00025703,0.00041095,60]
[398126902,1765387857744,-500.0,0.00041095,60]
[398126903,1765387857752,-500.0,0.00041095,60]
[398126904,1765387857762,-500.0,0.000415,60]
[398126905,1765387857771,-500.0,0.000415,60]
[398126906,1765387857780,-500.0,0.000415,60]
[398126907,1765387857790,-500.0,0.000415,60]
[398126908,1765387857799,-500.0,0.000415,60]
[398126909,1765387857810,-500.0,0.000415,60]
[398126910,1765387857819,-500.0,0.000415,60]
[398126911,1765387857828,-500.0,0.000415,60]
[398126912,1765387857838,-500.0,0.000415,60]
[398126913,1765387857847,-150.0,0.00041507,4]
[398126914,1765387857856,-500.0,0.00041599,60]
[398126915,1765387857865,-500.0,0.000416,60]
[398126916,1765387857874,-500.0,0.000416,60]
[398126917,1765387857883,-500.0,0.000416,60]
[398126918,1765387857892,-500.0,0.000416,60]
[398126919,1765387857901,-500.0,0.000416,60]
[398126920,1765387857911,-500.0,0.000416,60]
[398126921,1765387857920,-500.0,0.000416,60]
[398126922,1765387857928,-594.47,0.000416,60]
[398126923,1765387857938,-172.1847729,0.00041601,120]
[398126924,1765387857947,-462.141932,0.00041601,120]
[398126925,1765387857956,-462.141932,0.00041601,120]
[398126926,1765387857965,-462.141932,0.00041601,120]
[398126927,1765387857974,-462.141932,0.00041601,120]
[398126928,1765387857983,-462.141932,0.00041601,120]
[398126929,1765387857992,-462.141932,0.00041601,120]
[398126930,1765387858001,-462.141932,0.00041601,120]
[398126931,1765387858010,-462.14194,0.00041601,120]
[398126932,1765387858020,-152.220373,0.00041601,120]
[398126933,1765387858029,-151.0,0.00041601,120]
[398126934,1765387858038,-231.842532,0.00041601,120]
[398126935,1765387858047,-151.0,0.00041601,120]
[398126936,1765387858057,-151.0,0.00041601,120]
[398126937,1765387858066,-151.0,0.00041601,120]
[398126938,1765387858075,-151.0,0.00041601,120]
[398126939,1765387858084,-151.0,0.00041601,120]
[398126940,1765387858094,-151.0,0.00041601,120]
[398126941,1765387858104,-151.0,0.00041601,120]
[398126942,1765387858113,-151.0,0.00041601,120]
[398126943,1765387858122,-151.0,0.00041601,120]
[398126944,1765387858131,-151.0,0.00041601,120]
[398126945,1765387858141,-195.437211,0.00041601,120]
[398126946,1765387858151,-151.0,0.00041601,90]
[398126947,1765387858160,-151.0,0.00041601,120]
[398126948,1765387858169,-151.0,0.00041601,120]
[398126949,1765387858179,-188.123209,0.00041601,120]
[398126950,1765387858190,-151.0,0.00041601,120]
[398126951,1765387858200,-151.0,0.00041601,120]
[398126952,1765387858209,-243.348341,0.00041601,120]
[398126953,1765387858219,-153.575721,0.00041601,120]
[398126954,1765387858228,-151.0,0.00041601,120]
[398126955,1765387858238,-169.037969,0.00041601,120]
[398126956,1765387858248,-151.0,0.00041601,120]
[398126957,1765387858257,-151.0,0.00041601,120]
[398126958,1765387858265,-151.0,0.00041601,120]
[398126959,1765387858274,-151.0,0.00041601,120]
[398126960,1765387858282,-151.0,0.00041601,120]
[398126961,1765387858291,-151.0,0.00041601,120]
[398126962,1765387858300,-151.0,0.00041601,30]
[398126963,1765387858308,-151.0,0.00041601,30]
[398126964,1765387858317,-153.148386,0.00041601,30]
[398126965,1765387858327,-151.0,0.00041601,120]
[398126966,1765387858336,-152.657607,0.00041601,120]
[398126967,1765387858345,-151.0,0.00041601,120]
[398126968,1765387858353,-151.0,0.00041601,120]
[398126969,1765387858362,-248.791908,0.00041601,120]
[398126970,1765387858371,-151.0,0.00041601,120]
[398126971,1765387858380,-151.0,0.00041601,120]
[398126972,1765387858389,-151.000002,0.00041601,120]
[398126973,1765387858397,-151.0,0.00041601,120]
[398126974,1765387858407,-151.0,0.00041601,120]
[398126975,1765387858415,-151.0,0.00041601,120]
[398126976,1765387858424,-151.0,0.00041601,120]
[398126977,1765387858433,-151.0,0.00041601,120]
[398126978,1765387858446,-151.0,0.00041601,120]
[398126979,1765387858455,-151.0,0.00041601,120]
[398126980,1765387858464,-151.0,0.00041601,120]
[398126981,1765387858474,-151.0,0.00041601,120]
[398126982,1765387858485,-151.0,0.00041601,120]
[398126983,1765387858495,-151.0,0.00041601,120]
[398126984,1765387858505,-151.0,0.00041601,120]
[398126985,1765387858515,-151.0,0.00041601,120]
[398126986,1765387858525,-151.0,0.00041601,120]
[398126987,1765387858535,-283.924808,0.00041601,120]
[398126988,1765387858544,-151.0,0.00041601,120]
[398126989,1765387858555,-151.0,0.00041601,120]
[398126990,1765387858564,-151.0,0.00041601,120]
[398126991,1765387858574,-151.0,0.00041601,120]
[398126992,1765387858584,-3597.39079089,0.00041607,31]
[398126993,1765387858593,-309786.50021438,0.00041607,7]
[398126994,1765387858605,-1012.0,0.00041607,7]
[398126995,1765387858623,-287.65095,0.000416,60]
[398126996,1765387858634,-212.34905,0.000416,60]
[398126997,1765387858643,-4106.00461,0.00041607,7]
[398127001,1765388421395,10000.0,0.00015,10]
[398127002,1765388430239,0.01,0.00015,10]
[398127003,1765388430263,9999.99,0.00015,10]
[398127004,1765388446105,0.02,0.00015,10]
[398127005,1765388446128,9999.98,0.00015,10]
[398127006,1765388461191,0.03,0.00015,10]
[398127007,1765388461214,9999.97,0.00015,10]
[398127008,1765388468292,155.152779,7.945e-05,2]
[398127009,1765388479440,10000.0,0.00015,10]
[398127011,1765388494600,10000.0,0.00015,10]
[398127013,1765388515603,500.0,0.00015,2]
[398127014,1765388517228,2250.0,0.00015,10]
[398127015,1765388849643,-933.103293,0.00017021,2]
[398127016,1765388849670,-500.0,0.00017107,2]
[398127017,1765388849697,-296.0,0.00017207,2]
[398127018,1765388849725,-802.44,0.00017207,2]
[398127019,1765388849751,-500.0,0.00017207,2]
[398127020,1765388849783,-300.0,0.00017755,2]
[398127021,1765388849813,-300.0,0.00017872,2]
[398127022,1765388849842,-1200.0,0.00017872,2]
[398127023,1765388850046,-550.0,0.00017872,2]
[398127024,1765388850074,-500.37094928,0.00017873,2]
[398127025,1765388850100,-500.0,0.00017873,2]
[398127026,1765388850127,-500.0,0.00017873,2]
[398127027,1765388850154,-500.42181547,0.00017873,2]
[398127028,1765388850181,-500.28821444,0.00017873,2]
[398127029,1765388850208,-500.0,0.00017873,2]
[398127030,1765388850234,-500.0,0.00017873,2]
[398127031,1765388850261,-500.0,0.00017873,2]
[398127032,1765388850416,-397.84804162,0.00017873,2]
[398127033,1765388850520,-102.15195838,0.00017873,2]
[398127034,1765388850548,-504.02833567,0.00017873,2]
[398127035,1765388850574,-500.0,0.00017873,2]
[398127036,1765388850601,-500.0,0.00017873,2]
[398127037,1765388850628,-500.0,0.00017873,2]
[398127038,1765388850655,-500.0,0.00017873,2]
[398127039,1765388850682,-500.0,0.00017873,2]
[398127040,1765388850708,-570.54818201,0.00017973,2]
[398127041,1765388850734,-500.0,0.00017999,2]
[398127042,1765388850764,-500.0,0.00017999,2]
[398127043,1765388850791,-146.55304788,0.00017999,2]
[398127044,1765388851002,-353.44695212,0.00017999,2]
[398127045,1765388851029,-500.0,0.00017999,2]
[398127046,1765388851054,-500.0,0.00017999,2]
[398127047,1765388851080,-500.0,0.00017999,2]
[398127048,1765388851106,-500.0,0.00017999,2]
[398127049,1765388851132,-500.0,0.00017999,2]
[398127050,1765388851158,-500.0,0.00017999,2]
[398127051,1765388851184,-500.0,0.00017999,2]
[398127052,1765388851209,-500.0,0.00017999,2]
[398127053,1765388851348,-4844.92,0.00018113,2]
[398127054,1765388852889,-310.17,0.00018113,2]
[398127055,1765388852992,-0.02,0.00018113,2]
[398127056,1765388853357,-0.04,0.00018113,2]
[398127058,1765388859016,-0.08,0.00018113,2]
[398127059,1765388859134,-1775.22842026,0.00018113,2]
[398127060,1765388859261,-1775.38842026,0.00018113,2]
[398127061,1765388859283,-6449.23315948,0.00018113,2]
[398127062,1765388859531,-414.61,0.00018113,2]
[398127063,1765388859558,-2706.87,0.00018113,2]
[398127064,1765388859603,-3757.05,0.00018113,2]
[398127065,1765388859759,-3757.07,0.00018113,2]
[398127066,1765388859794,-2485.87,0.00018113,2]
[398127067,1765388862469,-802.44,0.00018113,2]
[398127068,1765388862496,-500.97359392,0.00018421,2]
[398127069,1765388862525,-500.0,0.00018421,2]
[398127070,1765388862556,-1000.0,0.00018421,2]
[398127071,1765388862584,-500.0,0.00018421,2]
[398127072,1765388862615,-1000.0,0.00018421,2]
[398127073,1765388862643,-500.0,0.00018421,2]
[398127074,1765388862758,-393.18281216,0.00018421,2]
[398127075,1765388867411,-500.0,0.00017999,2]
[398127076,1765388867444,-504.38215206,0.00017999,2]
[398127077,1765388867472,-106.81718784,0.00018421,2]
[398127078,1765388867502,-1000.0,0.00018421,2]
[398127079,1765388867533,-1106.17184546,0.00018421,2]
[398127080,1765389032130,-500.0,0.00017873,2]
[398127081,1765389032140,-501.42980184,0.00017873,2]
[398127082,1765389032149,-500.0,0.00017873,2]
[398127083,1765389032159,-302.0,0.00017873,2]
[398127084,1765389032168,-1200.0,0.00017998,2]
[398127085,1765389032179,-502.41193472,0.00017999,2]
[398127086,1765389032188,-500.0,0.00017999,2]
[398127087,1765389032197,-500.0,0.00017999,2]
[398127088,1765389032207,-555.9668358,0.00018113,2]
[398127089,1765389032216,-300.0,0.0001842,2]
[398127090,1765389032224,-300.0,0.0001842,2]
[398127091,1765389032233,-1000.0,0.00018421,2]
[398127092,1765389032242,-314.20619519,0.00018723,2]
[398127093,1765389032251,-250.0,0.00018723,2]
[398127094,1765389032261,-217.6285771,0.00018868,2]
[398127095,1765389032270,-1500.0,0.00018968,2]
[398127096,1765389032279,-895.20548569,0.00018968,2]
[398127097,1765389032320,-454.69711136,0.00018968,2]
[398127098,1765389032331,-150.09740295,0.00018968,2]
[398127099,1765389032340,-802.44,0.00019018,2]
[398127100,1765389032349,-770.36995968,0.00019516,2]
[398127101,1765389032360,-357.95624666,0.00019516,2]
[398127102,1765389032371,-647.27122259,0.00019516,2]
[398127103,1765389032382,-224.40257107,0.00019516,2]
[398127104,1765389032392,-2000.0,0.00019516,2]
[398127105,1765389032401,-1443.70878918,0.00019734,2]
[398127107,1765389032413,-236.29121082,0.00019734,2]
[398127108,1765389032423,-646.0,0.00019923,2]
[398127109,1765389032432,-802.44,0.00019924,2]
[398127110,1765389032441,-2422.50002317,0.00020064,2]
[398127111,1765389032451,-2310.88535235,0.00020064,2]
[398127112,1765389032461,-420.0,0.00020089,2]
[398127113,1765389032471,-256.73367945,0.00020596,2]
[398127114,1765389032482,-250.0,0.00020596,2]
[398127115,1765389032494,-802.44,0.0002083,2]
[398127116,1765389032503,-500.0,0.00021172,2]
[398127117,1765389032513,-1729.0,0.00021638,2]
[398127118,1765389032522,-802.44,0.00021735,2]
[398127119,1765389032532,-500.0,0.0002185,2]
[398127120,1765389032542,-432.0,0.0002191,2]
[398127121,1765389032551,-500.0,0.00021918,4]
[398127122,1765389032560,-500.0,0.00021918,4]
[398127123,1765389032570,-500.0,0.00021918,4]
[398127124,1765389032579,-500.0,0.00021918,4]
[398127125,1765389032589,-500.0,0.00021918,4]
[398127126,1765389032599,-500.0,0.00021918,4]
[398127127,1765389032608,-500.0,0.00021918,4]
[398127128,1765389032618,-500.0,0.00021918,4]
[398127129,1765389032627,-500.0,0.00021918,4]
[398127130,1765389032637,-500.0,0.00021918,4]
[398127131,1765389032647,-500.0,0.00022303,2]
[398127132,1765389032656,-802.44,0.00022641,2]
[398127133,1765389032666,-500.0,0.00023534,2]
[398127134,1765389032675,-802.44,0.00023547,2]
[398127135,1765389032684,-500.0,0.00024123,2]
[398127136,1765389032693,-802.44,0.00024452,2]
[398127137,1765389032703,-802.44,0.00025358,2]
[398127138,1765389032713,-802.44,0.00026264,2]
[398127139,1765389032722,-500.0,0.00027022,7]
[398127140,1765389032732,-700.0,0.00027085,7]
[398127141,1765389032742,-802.44,0.00027169,2]
[398127142,1765389032752,-3675.53,0.00027587,2]
[398127143,1765389032762,-1008.0,0.00027587,2]
[398127144,1765389032771,-802.44,0.00028075,2]
[398127145,1765389032781,-10394.54,0.00028203,2]
[398127146,1765389032791,-281.2338,0.00028909,2]
[398127147,1765389032801,-802.44,0.00028981,2]
[398127148,1765389032810,-325.72,0.00029064,2]
[398127149,1765389032821,-770.02,0.00029214,30]
[398127150,1765389032834,-200.0,0.00029463,2]
[398127151,1765389032843,-1852.42,0.00029524,2]
[398127152,1765389032853,-1500.0,0.00029535,120]
[398127153,1765389032862,-500.0,0.00029641,7]
[398127154,1765389032873,-300.0,0.00029847,2]
[398127155,1765389032886,-802.44,0.00029886,2]
[398127156,1765389032896,-150.0,0.00029905,2]
[398127157,1765389032908,-500.0,0.00030144,14]
[398127158,1765389032918,-1273.0895,0.00030245,2]
[398127159,1765389032927,-235.5853,0.00030245,2]
[398127160,1765389032936,-5000.0,0.00030345,2]
[398127161,1765389032945,-300.0,0.00030479,2]
[398127162,1765389032955,-171.71,0.00030527,2]
[398127163,1765389032964,-500.0,0.00030705,7]
[398127164,1765389032973,-802.44,0.00030792,2]
[398127165,1765389032983,-4587.63,0.00030942,2]
[398127166,1765389032992,-802.44,0.00031697,2]
[398127167,1765389033002,-158.78,0.00032531,2]
[398127168,1765389033011,-802.44,0.00032603,2]
[398127169,1765389033021,-802.44,0.00033509,2]
[398127170,1765389033030,-158.78,0.00033901,2]
[398127171,1765389033040,-217.62857709,0.00034014,2]
[398127172,1765389033049,-770.02,0.00034049,30]
[398127173,1765389033059,-1812.86,0.00034114,37]
[398127174,1765389033069,-181.765,0.00034114,37]
[398127175,1765389033078,-500.0,0.00034356,2]
[398127176,1765389033091,-802.44,0.00034414,2]
[398127177,1765389033100,-3447.0,0.0003469,2]
[398127178,1765389033110,-1323.0,0.0003469,2]
[398127179,1765389033119,-150.0,0.0003469,2]
[398127180,1765389033128,-150.0,0.0003469,2]
[398127181,1765389033137,-171.71,0.00035615,2]
[398127182,1765389033147,-700.0,0.00035625,30]
[398127183,1765389033156,-199.0,0.0003589,7]
[398127184,1765389033166,-199.0,0.00036438,8]
[398127185,1765389033176,-199.0,0.00036986,9]
[398127186,1765389033185,-200.67570054,0.000372,120]
[398127187,1765389033194,-199.0,0.00037534,10]
[398127188,1765389033203,-7000.0,0.00038,7]
[398127189,1765389033213,-199.0,0.00038082,11]
[398127190,1765389033222,-770.02,0.00038883,120]
[398127191,1765389033231,-3675.53,0.00039368,2]
[398127192,1765389033240,-500.0,0.00040156,60]
[398127193,1765389033250,-523.43245382,0.00040156,60]
[398127194,1765389033260,-500.0,0.00040156,60]
[398127195,1765389033270,-500.0,0.00040156,60]
[398127196,1765389033283,-500.0,0.00040156,60]
[398127197,1765389033293,-500.0,0.00040156,14]
[398127198,1765389033303,-500.0,0.00040156,60]
[398127199,1765389033312,-500.0,0.00040156,60]
[398127200,1765389033322,-500.0,0.00040156,60]
[398127201,1765389033331,-284.41911276,0.00040156,60]
[398127202,1765389033344,-215.58088724,0.00040156,60]
[398127203,1765389033353,-71.02338546,0.00040156,60]
[398127204,1765389033394,-555.9668358,0.00020473,2]
[398127205,1765389033404,-414.49974091,0.00040156,60]
[398127206,1765389033414,-500.0,0.00040156,30]
[398127207,1765389033424,-500.0,0.00040156,60]
[398127208,1765389033434,-500.0,0.00040156,60]
[398127209,1765389033443,-500.0,0.00040256,60]
[398127210,1765389033452,-500.0,0.00040256,60]
[398127211,1765389033462,-500.0,0.00040256,60]
[398127212,1765389033471,-500.0,0.00040256,14]
[398127213,1765389033483,-500.0,0.00040256,60]
[398127214,1765389033493,-500.0,0.00040256,30]
[398127215,1765389033503,-500.0,0.00040256,60]
[398127216,1765389033514,-500.0,0.00040256,60]
[398127217,1765389033524,-5000.0,0.00040275,120]
[398127218,1765389033535,-218.94857437,0.00040353,7]
[398127219,1765389033544,-17857.0950144,0.00040365,4]
[398127220,1765389033554,-202.6,0.00040373,30]
[398127221,1765389033563,-500.0,0.00040374,31]
[398127222,1765389033572,-500.0,0.00040374,7]
[398127223,1765389033582,-327.40110584,0.00040374,7]
[398127224,1765389033591,-500.0,0.00040374,31]
[398127225,1765389033600,-500.0,0.00040374,7]
[398127226,1765389033610,-500.0,0.00040374,31]
[398127227,1765389033620,-500.0,0.00040374,31]
[398127228,1765389033629,-500.0,0.00040374,31]
[398127229,1765389033638,-462.39462956,0.00040374,31]
[398127230,1765389033648,-446.88187092,0.00040374,7]
[398127231,1765389033659,-500.0,0.00040374,31]
[398127232,1765389033670,-500.0,0.00040374,31]
[398127233,1765389033680,-500.0,0.00040374,31]
[398127234,1765389033690,-500.0,0.00040374,31]
[398127235,1765389033700,-500.0,0.00040374,31]
[398127236,1765389033710,-500.0,0.00040374,31]
[398127237,1765389033719,-500.0,0.00040374,31]
[398127238,1765389033729,-500.0,0.00040374,31]
[398127239,1765389033739,-500.0,0.00040374,31]
[398127240,1765389033748,-500.0,0.00040374,31]
[398127241,1765389033758,-500.0,0.00040374,31]
[398127242,1765389033767,-500.0,0.00040374,31]
[398127243,1765389033777,-500.0,0.00040374,31]
[398127244,1765389033786,-500.0,0.00040374,31]
[398127245,1765389033796,-500.0,0.00040374,31]
[398127246,1765389033806,-434.15492547,0.00040374,31]
[398127247,1765389033815,-500.0,0.00040374,31]
[398127248,1765389033829,-500.0,0.00040374,31]
[398127249,1765389033839,-500.0,0.00040374,31]
[398127250,1765389033848,-500.0,0.00040374,31]
[398127251,1765389033864,-500.0,0.00040374,31]
[398127252,1765389033878,-500.0,0.00040374,31]
[398127253,1765389033888,-500.0,0.00040374,31]
[398127254,1765389033898,-500.0,0.00040374,31]
[398127255,1765389033910,-500.0,0.00040374,31]
[398127256,1765389033920,-500.0,0.00040374,31]
[398127257,1765389033930,-500.0,0.00040374,31]
[398127258,1765389033939,-500.0,0.00040374,31]
[398127259,1765389033948,-500.0,0.00040374,31]
[398127260,1765389033957,-500.0,0.00040374,31]
[398127261,1765389033967,-500.0,0.00040374,31]
[398127262,1765389033977,-500.0,0.00040374,31]
[398127263,1765389033987,-500.0,0.00040374,31]
[398127264,1765389033996,-500.0,0.00040374,31]
[398127265,1765389034006,-500.0,0.00040374,31]
[398127266,1765389034016,-500.0,0.00040374,31]
[398127267,1765389034026,-500.0,0.00040374,31]
[398127268,1765389034035,-500.0,0.00040374,31]
[398127269,1765389034044,-500.0,0.00040374,31]
[398127270,1765389034054,-500.0,0.00040374,31]
[398127271,1765389034063,-500.0,0.00040374,31]
[398127272,1765389034073,-500.0,0.00040374,31]
[398127273,1765389034083,-500.0,0.00040374,31]
[398127274,1765389034092,-500.0,0.00040374,31]
[398127275,1765389034103,-500.0,0.00040374,31]
[398127276,1765389034112,-500.0,0.00040374,31]
[398127277,1765389034123,-500.0,0.00040374,31]
[398127278,1765389034132,-500.0,0.00040374,31]
[398127279,1765389034142,-500.0,0.00040374,31]
[398127280,1765389034152,-500.0,0.00040374,31]
[398127281,1765389034161,-500.0,0.00040374,31]
[398127282,1765389034171,-500.0,0.00040374,31]
[398127283,1765389034180,-500.0,0.00040374,31]
[398127284,1765389034190,-500.0,0.00040374,31]
[398127285,1765389034200,-500.0,0.00040374,31]
[398127286,1765389034210,-500.0,0.00040374,31]
[398127287,1765389034219,-500.0,0.00040374,31]
[398127288,1765389034229,-500.0,0.00040374,31]
[398127289,1765389034238,-500.0,0.00040374,31]
[398127290,1765389034247,-500.0,0.00040374,31]
[398127291,1765389034258,-500.0,0.00040374,31]
[398127292,1765389034267,-500.0,0.00040374,31]
[398127293,1765389034277,-500.0,0.00040374,31]
[398127294,1765389034287,-500.0,0.00040374,31]
[398127295,1765389034296,-500.0,0.00040374,31]
[398127296,1765389034305,-500.0,0.00040374,31]
[398127297,1765389034315,-450.0,0.00040374,31]
[398127298,1765389034324,-500.0,0.00040374,31]
[398127299,1765389034334,-500.0,0.00040374,31]
[398127300,1765389034343,-500.0,0.00040374,31]
[398127301,1765389034352,-500.0,0.00040374,31]
[398127302,1765389034362,-500.0,0.00040374,31]
[398127303,1765389034371,-500.0,0.00040374,31]
[398127304,1765389034380,-500.0,0.00040374,31]
[398127305,1765389034390,-500.0,0.00040374,31]
[398127306,1765389034400,-500.0,0.00040374,31]
[398127307,1765389034409,-500.0,0.00040374,31]
[398127308,1765389034418,-500.0,0.00040374,31]
[398127309,1765389034428,-500.0,0.00040374,31]
[398127310,1765389034437,-500.0,0.00040374,31]
[398127311,1765389034448,-499.99999999,0.00040374,31]
[398127312,1765389034457,-1500.00166667,0.00040374,31]
[398127313,1765389034467,-1500.00166667,0.00040374,31]
[398127314,1765389034476,-1500.00166667,0.00040374,31]
[398127315,1765389034486,-1500.00166667,0.00040374,31]
[398127316,1765389034496,-1500.00166667,0.00040374,31]
[398127317,1765389034506,-1500.00166665,0.00040374,31]
[398127318,1765389034515,-12001.04325693,0.00040375,2]
[398127319,1765389034552,-400.0,0.00040375,2]
[398127320,1765389034563,-3086.38560984,0.00040375,2]
[398127321,1765389034575,-5587.22509564,0.00040375,2]
[398127334,1765389038201,-354.0347142,0.00022833,2]
[398127359,1765389040265,-201.9321216,0.00022833,2]
[398127360,1765389040274,-298.0678784,0.00025193,2]
[398127361,1765389040318,-257.8989574,0.00025193,2]
[398127362,1765389040328,-150.0,0.0003469,2]
[398127363,1765389040340,-265.921,0.0003469,2]
[398127364,1765389040350,-150.0,0.0003769,2]
[398127365,1765389040359,-80.6900426,0.00040375,2]
[398127366,1765389040371,-7206.73224725,0.00040375,2]
[398127367,1765389040383,-38683.1044579,0.00040375,2]
[398127368,1765389040398,-91615.23356955,0.00040375,2]
[398127369,1765389040409,-707.12359549,0.00040375,2]
[398127370,1765389040421,-1201.2,0.00040375,2]
[398127371,1765389040432,-5068.68277269,0.00040375,2]
[398127372,1765389040534,-436.93647188,0.00040375,2]
[398127395,1765389043361,-1819.95814,0.00040375,2]
[398127396,1765389043373,-592105.68474023,0.00040375,2]
[398127397,1765389043382,-1275.50678674,0.00040465,4]
[398127398,1765389043391,-28749.6618622,0.00040475,2]
[398127399,1765389043402,-7562.2181378,0.00040475,2]
[398127400,1765389043411,-1275.50678674,0.00040536,4]
[398127401,1765389043421,-203.15225594,0.00040603,12]
[398127402,1765389043430,-202.6,0.00040647,30]
[398127403,1765389043439,-171.71,0.00040702,2]
[398127404,1765389043448,-203.15225593,0.00040708,13]
[398127405,1765389043457,-1275.50678674,0.0004081,4]
[398127406,1765389043470,-325.72,0.00041038,14]
[398127407,1765389043480,-300.0,0.0004106,120]
[398127408,1765389043490,-300.0,0.0004106,120]
[398127409,1765389043499,-300.0,0.0004106,120]
[398127410,1765389043509,-300.0,0.0004106,120]
[398127411,1765389043518,-433.0,0.0004106,120]
[398127412,1765389043528,-1275.50678674,0.00041083,4]
[398127413,1765389043537,-7653.04072044,0.00041085,4]
[398127414,1765389043547,-403.8619713,0.00041089,31]
[398127415,1765389043556,-500.0,0.00041089,31]
[398127416,1765389043565,-241.59614775,0.00041089,31]
[398127417,1765389043575,-500.0,0.00041089,31]
[398127418,1765389043583,-444.86535232,0.00041089,31]
[398127419,1765389043592,-500.0,0.00041094,60]
[398127420,1765389043601,-500.0,0.00041094,60]
[398127421,1765389043610,-500.0,0.00041094,14]
[398127422,1765389043619,-546.40225321,0.00041094,60]
[398127423,1765389043630,-500.0,0.00041094,30]
[398127424,1765389043639,-500.0,0.00041094,60]
[398127425,1765389043648,-500.0,0.00041095,60]
[398127426,1765389043657,-500.0,0.00041095,60]
[398127427,1765389043667,-233.56479744,0.00041095,60]
[398127428,1765389043677,-500.0,0.00041095,60]
[398127429,1765389043686,-309.48055768,0.00041095,60]
[398127430,1765389043695,-500.0,0.00041095,60]
[398127431,1765389043704,-500.0,0.00041095,60]
[398127432,1765389043713,-500.0,0.00041095,60]
[398127433,1765389043723,-500.0,0.00041095,60]
[398127434,1765389043732,-500.0,0.00041095,60]
[398127435,1765389043741,-500.0,0.00041095,60]
[398127436,1765389043750,-500.0,0.00041095,60]
[398127437,1765389043760,-469.36502027,0.00041095,60]